bitfinex/quotes_ETHUSD_20250813
["timestamp","ask_amount","ask_price","bid_price","bid_amount"]
[1755111220178,0.02,4700.4,4699.7,0.55]
[1755111220468,0.02,4700.4,4699.9,3.6564]
[1755111220697,0.02,4700.4,4700.3,0.6564]
[1755111220886,0.02,4700.4,4700.3,6.9584]
[1755111221088,0.02,4700.4,4700.3,8.2727]
[1755111221596,0.02,4700.4,4700.3,16.0197]
[1755111221768,0.4428,4702.0,4700.3,17.62167]
[1755111221976,0.8305,4702.4,4700.4,4.88557478]
[1755111222199,0.8305,4702.4,4701.3,0.1064]
[1755111222382,0.8305,4702.4,4701.3,6.4074]
[1755111222581,0.8305,4702.4,4701.3,7.7217]
[1755111222778,0.8305,4702.4,4701.3,8.59574484]
[1755111222979,0.02,4702.4,4701.3,8.59574484]
[1755111223192,0.02,4702.4,4701.3,9.14574484]
[1755111224187,0.02,4702.4,4701.4,3.55]
[1755111224393,0.02,4702.4,4701.6,3.55]
[1755111224591,0.02,4702.4,4702.3,0.1064]
[1755111224794,0.02,4702.4,4702.3,6.42866618]
[1755111224993,0.02,4702.4,4702.3,8.36456662]
[1755111225189,0.02,4702.4,4702.3,7.05026662]
[1755111225810,0.02,4702.4,4702.3,3.74926662]
[1755111225987,0.02,4702.4,4702.3,6.4064]
[1755111227111,0.02,4702.4,4702.3,7.7207]
[1755111227311,0.02,4702.4,4702.3,8.2707]
[1755111228711,0.02,4702.4,4702.3,6.9564]
[1755111228912,0.02,4702.4,4702.3,8.10554]
[1755111229224,0.02,4703.4,4702.5,26.333037]
[1755111229388,0.02,4703.4,4702.6,6.989]
[1755111229713,0.02,4703.4,4703.3,0.1064]
[1755111229885,0.02,4703.4,4703.3,6.4054]
[1755111230085,0.02,4703.4,4703.3,7.04594]
[1755111231091,0.022,4703.4,4703.3,7.04594]
[1755111231498,0.022,4703.4,4703.3,14.78994]
[1755111232418,0.022,4703.4,4703.3,14.1494]
[1755111233215,1.2753,4703.4,4703.3,11.1494]
[1755111234316,1.2753,4703.4,4703.3,11.043]
[1755111235081,1.3817,4703.4,4703.3,11.043]
[1755111236031,1.2753,4703.4,4703.3,11.043]
[1755111237390,0.022,4703.4,4703.3,11.043]
[1755111237592,0.022,4703.4,4703.3,11.1494]
[1755111237833,1.2753,4703.4,4703.3,11.1494]
[1755111238334,1.2753,4703.4,4703.3,11.043]
[1755111239950,1.3817,4703.4,4703.3,11.043]
[1755111240149,1.51987,4703.4,4703.3,11.043]
[1755111240818,2.06987,4703.4,4703.3,11.043]
[1755111242849,2.06717,4703.4,4703.3,11.043]
[1755111243017,1.2726,4703.4,4703.3,11.043]
[1755111244638,0.4648,4703.4,4703.3,11.043]
[1755111245409,0.022,4703.4,4703.3,11.043]
[1755111246140,0.022,4703.4,4703.3,11.4729]
[1755111246635,0.022,4703.4,4703.3,11.043]
[1755111247244,0.022,4703.4,4703.3,12.27543]
[1755111247554,0.022,4703.4,4703.3,13.55673]
[1755111249740,0.022,4703.4,4703.3,16.55673]
[1755111251056,0.022,4703.4,4703.3,15.27543]
[1755111251748,0.022,4703.4,4703.3,16.55673]
[1755111253145,0.022,4703.4,4703.3,16.66313]
[1755111255249,0.022,4703.4,4703.3,15.38183]
[1755111256856,0.022,4703.4,4703.3,12.38183]
[1755111257234,0.022,4703.4,4703.3,15.38183]
[1755111260062,0.022,4703.4,4703.3,16.66313]
[1755111260556,0.022,4703.4,4703.3,13.66313]
[1755111260928,0.022,4703.4,4703.3,16.66313]
[1755111265152,0.022,4703.4,4703.3,17.21313]
[1755111265350,0.022,4703.4,4703.3,14.97308533]
[1755111265652,0.022,4703.4,4703.3,14.56413]
[1755111266662,0.002,4703.9,4703.5,0.55]
[1755111266867,0.002,4703.9,4703.8,0.6564]
[1755111267055,0.002,4703.9,4703.8,6.9686594]
[1755111267234,0.002,4703.9,4703.8,8.2287]
[1755111270371,0.02,4704.4,4703.9,3.55]
[1755111270665,10.0,4706.2,4704.2,0.55]
[1755111270972,10.0,4706.2,4704.8,0.1064]
[1755111271176,10.0,4706.2,4704.8,6.41765488]
[1755111271351,10.0,4706.2,4704.8,7.6912]
[1755111271554,0.428,4706.1,4704.8,16.25532]
[1755111271884,0.428,4706.1,4704.8,14.96052]
[1755111272089,0.428,4705.8,4704.8,14.96052]
[1755111273384,10.789,4706.2,4704.8,15.41012]
[1755111273542,10.0,4706.2,4704.8,16.25532]
[1755111274246,10.0,4706.2,4704.8,14.15732]
[1755111274838,0.428,4706.0,4704.8,12.31252]
[1755111276480,0.428,4706.0,4704.8,12.76212]
[1755111276986,0.428,4705.7,4704.8,12.31252]
[1755111277567,10.0,4706.2,4704.8,9.06532]
[1755111278793,10.0,4706.2,4704.9,0.55]
[1755111278946,10.0,4706.2,4705.1,0.55]
[1755111279298,10.0,4706.2,4705.4,0.55]
[1755111279440,10.0,4706.2,4705.6,0.55]
[1755111279783,10.0,4706.2,4706.1,0.1064]
[1755111279970,10.0,4706.2,4706.1,3.3944]
[1755111280370,10.0,4706.2,4706.1,3.7788]
[1755111280943,9.375,4706.2,4706.1,5.6236]
[1755111281150,4.50439453,4706.2,4706.1,5.6236]
[1755111281360,4.50439453,4706.2,4706.1,8.6236]
[1755111281559,0.02,4707.4,4706.2,3.55]
[1755111281880,0.02,4707.4,4706.4,3.55]
[1755111282077,0.02,4707.4,4706.6,3.55]
[1755111282285,0.02,4707.4,4707.3,0.1064]
[1755111282466,0.02,4707.4,4707.3,6.3934]
[1755111284065,0.02,4707.4,4707.3,6.843]
[1755111284267,1.237,4707.4,4707.3,5.091]
[1755111284496,0.02,4707.4,4707.3,8.377]
[1755111286108,0.02,4707.4,4707.3,11.377]
[1755111286515,1.237,4707.4,4707.3,11.377]
[1755111287305,0.448,4707.4,4707.3,11.377]
[1755111287612,0.02,4707.4,4707.3,11.377]
[1755111287985,0.02,4707.4,4707.3,12.5147]
[1755111288720,0.02,4707.4,4707.3,12.9643]
[1755111288887,0.02,4707.4,4707.3,13.8095]
[1755111289097,0.02,4707.4,4707.3,12.5147]
[1755111290383,0.448,4707.4,4707.3,12.5147]
[1755111290718,0.02,4707.4,4707.3,11.377]
[1755111291517,0.02,4707.4,4707.3,14.023]
[1755111291700,0.02,4707.4,4707.3,10.737]
[1755111292015,0.02,4707.4,4707.3,14.022]
[1755111293115,0.02,4707.4,4707.3,15.3168]
[1755111293323,0.02,4707.4,4707.3,16.84848]
[1755111294324,0.02,4707.4,4707.3,16.95488]
[1755111294520,0.02,4707.4,4707.3,14.30888]
[1755111296397,0.02,4707.4,4707.3,9.21788]
[1755111297689,0.02,4707.4,4707.3,7.92308]
[1755111298016,0.02,4707.4,4707.3,6.3914]
[1755111298404,0.02,4707.4,4707.3,3.3914]
[1755111298795,0.02,4707.4,4707.3,6.3914]
[1755111300214,0.02,4707.4,4707.3,3.1064]
[1755111300421,1.2619,4707.4,4707.3,3.3914]
[1755111300744,1.38809,4707.4,4707.3,3.285]
[1755111300924,1.49449,4707.4,4707.3,3.285]
[1755111301422,1.3683,4707.4,4707.3,8.374]
[1755111301624,1.2619,4707.4,4707.3,8.374]
[1755111301825,0.02,4707.4,4707.3,11.4804]
[1755111305647,1.2619,4707.4,4707.3,11.4804]
[1755111307086,0.02,4707.4,4707.3,11.4804]
[1755111307667,10.02,4707.4,4707.3,11.4804]
[1755111308589,10.02,4707.4,4707.3,13.96794]
[1755111309154,10.02,4707.4,4707.3,13.08634]
[1755111309351,10.02,4707.4,4707.3,12.62844]
[1755111309777,10.02,4707.4,4707.3,13.96794]
[1755111310586,6.84960937,4707.4,4707.3,13.96794]
[1755111310810,6.84960937,4707.4,4707.3,8.87894]
[1755111311305,6.84960937,4707.4,4707.3,7.53944]
[1755111311511,6.84960937,4707.4,4707.3,15.27444]
[1755111311971,6.84960937,4707.4,4707.3,16.61394]
[1755111312373,6.84960937,4707.4,4707.3,40.43797214]
[1755111313307,0.022,4708.4,4707.4,3.0]
[1755111313605,0.002,4707.9,4707.6,3.0]
[1755111313791,0.002,4707.9,4707.8,27.37403214]
[1755111313991,0.022,4708.4,4707.9,8.807301]
[1755111314193,0.022,4708.4,4708.0,0.02124044]
[1755111314465,0.022,4708.4,4708.3,0.1064]
[1755111314724,0.022,4708.4,4708.3,6.8483]
[1755111315008,0.022,4708.4,4708.3,6.3904]
[1755111317933,0.022,4708.4,4708.3,6.7419]
[1755111318213,0.022,4708.4,4708.3,7.72695501]
[1755111318414,0.022,4708.4,4708.3,9.93351069]
[1755111318616,0.022,4708.4,4708.3,10.03991069]
[1755111319514,0.022,4708.4,4708.3,10.58991069]
[1755111320304,0.022,4708.4,4708.3,34.41394283]
[1755111320510,0.022,4708.4,4708.3,32.20738715]
[1755111320714,0.022,4708.4,4708.3,3.20985501]
[1755111321011,0.022,4708.4,4708.3,6.3894]
[1755111321383,0.022,4708.4,4708.3,9.0344]
[1755111321579,0.022,4708.4,4708.3,15.54584345]
[1755111321813,0.022,4708.4,4708.3,40.80147559]
[1755111322308,0.022,4708.4,4708.3,16.97744345]
[1755111322495,0.022,4708.4,4708.3,9.15994345]
[1755111322691,0.022,4708.4,4708.3,12.44294345]
[1755111323092,0.022,4708.4,4708.3,4.35494345]
[1755111323282,0.022,4708.4,4708.3,3.3894]
[1755111323724,0.022,4708.4,4708.3,4.75013908]
[1755111323888,0.022,4708.4,4708.3,4.7289]
[1755111324903,0.022,4708.4,4708.3,7.7289]
[1755111325091,0.022,4708.4,4708.3,6.3894]
[1755111325297,0.022,4708.4,4708.3,7.14471545]
[1755111325499,0.022,4708.4,4708.3,7.60261545]
[1755111325694,0.022,4708.4,4708.3,8.48421545]
[1755111326018,0.022,4708.4,4708.3,9.03421545]
[1755111326219,0.002,4708.9,4708.4,3.55]
[1755111326519,0.002,4708.9,4708.7,0.55]
[1755111326718,0.002,4708.9,4708.8,6.96063683]
[1755111327033,0.02,4709.4,4708.9,3.55]
[1755111327325,0.02,4709.4,4709.3,27.37403214]
[1755111327494,0.02,4709.4,4709.3,30.76343214]
[1755111327690,0.02,4709.4,4709.3,31.02648782]
[1755111327914,0.02,4709.4,4709.3,33.75948782]
[1755111328486,0.02,4709.4,4709.3,34.30948782]
[1755111329233,0.02,4711.4,4709.4,3.55]
[1755111329524,0.02,4711.4,4710.3,0.1064]
[1755111329702,0.02,4711.4,4710.3,8.59595568]
[1755111329903,0.8522,4711.3,4710.3,5.31295568]
[1755111330090,0.02,4711.4,4710.3,3.1064]
[1755111330298,0.8522,4710.8,4710.3,6.3894]
[1755111330823,0.02,4711.4,4710.3,6.3894]
[1755111331392,0.02,4711.4,4710.3,9.0344]
[1755111331622,0.02,4711.4,4710.3,14.1214]
[1755111331817,0.02,4711.4,4710.3,14.5724]
[1755111332019,0.02,4711.4,4710.3,17.60865568]
[1755111332736,0.4407,4711.0,4710.3,16.32795568]
[1755111333221,0.02,4711.4,4710.3,16.32795568]
[1755111333726,0.022,4711.4,4710.3,16.32795568]
[1755111334302,0.022,4711.4,4710.3,14.96365568]
[1755111334509,0.022,4711.4,4710.3,15.67073642]
[1755111334712,0.022,4711.4,4710.3,10.58373642]
[1755111335194,0.022,4710.4,4710.3,10.58373642]
[1755111338304,0.022,4710.4,4710.3,9.75403642]
[1755111338636,0.022,4710.4,4710.3,8.59495568]
[1755111338932,0.022,4710.4,4710.3,3.3884]
[1755111339930,0.022,4710.4,4710.3,6.3884]
[1755111341440,0.02124084,4710.4,4710.3,14.1174]
[1755111341636,0.02124084,4710.4,4710.3,10.8354]
[1755111341930,0.02124084,4710.4,4710.3,14.1174]
[1755111342135,0.02124084,4710.4,4710.3,15.5927356]
[1755111344636,0.02124084,4710.4,4710.3,5.1914]
[1755111344637,1.31414084,4710.4,4710.3,5.1914]
[1755111344818,1.31414084,4710.4,4710.3,8.367]
[1755111345017,1.31414084,4710.4,4710.3,5.085]
[1755111345018,1.42054084,4710.4,4710.3,5.085]
[1755111345212,1.42054084,4710.4,4710.3,8.367]
[1755111345414,1.42054084,4710.4,4710.3,5.085]
[1755111345638,1.42054084,4710.4,4710.3,8.367]
[1755111346809,1.42054084,4710.4,4710.3,5.085]
[1755111347010,2.11259492,4710.4,4710.3,5.085]
[1755111347353,2.33812334,4710.4,4710.3,8.366]
[1755111347509,2.11259492,4710.4,4710.3,8.366]
[1755111347936,2.11259492,4710.4,4708.6,0.1064]
[1755111348126,0.55,4710.0,4708.7,8.367]
[1755111348330,1.2929,4709.9,4708.8,3.282]
[1755111348534,0.55,4709.7,4708.8,3.282]
[1755111348842,1.2929,4709.6,4708.8,3.282]
[1755111349044,0.1064,4709.1,4708.8,3.282]
[1755111349343,1.2929,4709.0,4708.8,3.282]
[1755111349540,0.1064,4709.1,4708.8,3.282]
[1755111349748,1.2929,4708.9,4708.8,3.282]
[1755111350314,0.1064,4709.1,4708.8,3.282]
[1755111350714,0.4407,4709.0,4708.8,3.282]
[1755111350942,1.2929,4709.0,4708.8,3.282]
[1755111352236,0.4407,4708.9,4708.8,3.282]
[1755111353014,1.2807,4708.9,4708.7,5.085]
[1755111353251,0.84,4708.9,4708.8,3.282]
[1755111353952,1.2807,4708.9,4708.8,3.282]
[1755111355230,1.2807,4708.9,4708.5,2.645]
[1755111355231,0.55,4708.8,4708.5,2.645]
[1755111355433,0.01454586,4708.7,4707.3,0.001]
[1755111355625,0.01454586,4708.7,4708.6,5.087]
[1755111355824,0.55,4708.8,4708.6,5.087]
[1755111356038,0.1064,4708.7,4708.6,5.087]
[1755111356234,1.9371,4708.7,4708.6,5.087]
[1755111356841,1.9371,4708.7,4708.6,8.369]
[1755111357041,1.9371,4708.7,4708.6,8.37]
[1755111358531,1.9371,4708.7,4708.6,8.371]
[1755111361138,1.9371,4708.7,4708.6,0.001]
[1755111361332,2.13081,4708.7,4708.6,8.372]
[1755111363872,2.13081,4708.7,4708.6,5.089]
[1755111364182,2.13081,4708.7,4708.6,8.372]
[1755111366173,5.13081,4708.7,4708.6,0.001]
[1755111366361,5.13081,4708.7,4708.6,5.09]
[1755111366564,5.13081,4708.7,4708.6,0.001]
[1755111366763,3.55,4708.6,4708.1,0.001]
[1755111367072,0.56454586,4708.5,4708.2,8.372]
[1755111367248,1.83824586,4708.5,4708.2,8.372]
[1755111367444,0.6564,4708.3,4708.2,8.372]
[1755111367847,1.9301,4708.3,4708.2,5.089]
[1755111368048,1.9301,4708.3,4708.2,8.372]
[1755111369280,0.55,4708.2,4707.3,0.001]
[1755111369448,0.01454586,4708.1,4707.9,8.373]
[1755111369775,28.64773214,4708.0,4707.9,8.373]
[1755111369950,28.75413214,4708.0,4707.9,8.373]
[1755111370574,28.91529728,4708.0,4707.9,8.373]
[1755111371150,28.91529728,4708.0,4707.9,8.372]
[1755111371366,28.91529728,4708.0,4707.9,5.089]
[1755111371676,28.91529728,4708.0,4707.9,8.372]
[1755111373483,3.26756514,4708.0,4707.9,8.372]
[1755111373687,3.26756514,4708.0,4707.9,8.374]
[1755111373988,3.26756514,4708.0,4707.3,0.001]
[1755111374283,3.71116514,4708.0,4707.9,5.09]
[1755111374513,3.71116514,4708.0,4707.9,8.374]
[1755111374686,3.55,4707.9,4707.3,0.001]
[1755111374851,0.55,4707.9,4707.5,8.374]
[1755111375052,24.26153214,4709.1,4707.6,1.3413]
[1755111375252,23.82403214,4709.1,4707.7,1.3413]
[1755111375478,23.82403214,4709.1,4707.5,8.374]
[1755111375479,0.10169412,4709.4,4707.8,4.6253]
[1755111375776,3.0,4707.9,4707.8,4.6253]
[1755111375982,3.1064,4707.9,4707.8,4.6253]
[1755111376583,0.1064,4707.9,4707.8,4.6253]
[1755111377085,3.1064,4707.9,4707.8,4.6253]
[1755111379492,10.0,4708.0,4707.8,4.86472736]
[1755111379858,10.0,4708.0,4707.8,3.52342736]
[1755111380058,10.0,4708.0,4707.9,1.3413]
[1755111380655,10.0,4708.0,4707.9,1.4477]
[1755111383284,10.0,4708.0,4707.9,3.283]
[1755111383586,10.0,4708.0,4707.8,0.001]
[1755111383785,10.0,4708.0,4707.9,8.8318]
[1755111383960,10.0,4708.0,4707.9,9.7133]
[1755111384285,10.0,4708.0,4707.9,10.68473]
[1755111385585,10.0,4708.0,4707.9,10.79113]
[1755111386889,10.1064,4708.0,4707.9,8.372]
[1755111387090,10.1064,4708.0,4707.9,9.7133]
[1755111387457,10.0,4708.0,4707.9,9.7133]
[1755111387697,10.0,4708.0,4707.9,8.372]
[1755111389260,10.0,4708.0,4707.9,9.7133]
[1755111389464,10.0,4708.0,4707.9,10.68473]
[1755111390066,10.0,4708.0,4707.9,9.80323]
[1755111390272,10.0,4708.0,4707.9,8.372]
[1755111390896,10.0,4708.0,4707.9,8.8422]
[1755111391570,10.0,4708.0,4707.9,8.372]
[1755111393270,10.0,4708.0,4707.9,8.8422]
[1755111393970,10.0,4708.0,4707.9,9.6532]
[1755111394172,10.0,4708.0,4707.9,10.72502]
[1755111398167,10.0,4708.0,4707.9,9.44382]
[1755111398497,10.0,4708.0,4707.9,10.72502]
[1755111400615,10.002,4708.0,4707.9,10.72502]
[1755111402282,10.002,4708.0,4707.9,9.91402]
[1755111402474,10.002,4708.0,4707.9,10.72502]
[1755111407128,10.002,4708.0,4707.9,10.61862]
[1755111407418,10.002,4708.0,4707.9,11.04740867]
[1755111407419,5.70426563,4708.0,4707.9,11.04740867]
[1755111408083,1.97487821,4708.0,4707.9,11.04740867]
[1755111408283,1.97487821,4708.0,4707.9,8.52962]
[1755111408504,0.002,4708.5,4708.0,5.20655568]
[1755111408804,0.002,4708.5,4708.4,26.82403214]
[1755111409010,0.002,4708.5,4708.4,30.10603214]
[1755111409199,0.002,4708.5,4708.4,31.38723214]
[1755111411610,0.002,4708.5,4708.4,39.12123214]
[1755111411814,0.002,4708.5,4708.4,41.32778782]
[1755111414613,0.002,4708.5,4708.4,38.68178782]
[1755111415390,0.002,4709.0,4708.5,3.0]
[1755111415590,0.002,4709.0,4708.7,3.0]
[1755111415789,0.002,4709.0,4708.9,3.0]
[1755111416017,0.002,4709.0,4708.9,3.77953969]
[1755111416214,0.002,4709.0,4708.9,5.06073969]
[1755111417214,0.002,4709.0,4708.9,5.16713969]
[1755111418283,0.002,4709.5,4708.9,5.06073969]
[1755111418605,0.002,4709.5,4709.4,26.82403214]
[1755111418806,0.002,4709.5,4709.4,30.21143214]
[1755111419318,0.002,4709.5,4709.4,31.49263214]
[1755111419837,0.002,4709.5,4709.4,31.59691062]
[1755111420382,0.002,4709.5,4709.4,7.77187848]
[1755111421518,0.002,4709.5,4709.4,15.50387848]
[1755111421715,0.002,4709.5,4709.4,14.43043416]
[1755111421916,0.002,4709.5,4709.4,16.42923416]
[1755111422123,0.002,4709.5,4709.4,16.85883416]
[1755111422298,0.002,4709.5,4709.4,17.73123416]
[1755111422502,0.002,4709.5,4709.4,15.08623416]
[1755111422887,0.002,4709.5,4709.4,10.50423416]
[1755111423090,0.002,4709.5,4709.4,13.67995568]
[1755111423605,0.002,4709.5,4709.4,14.98195568]
[1755111423812,0.002,4709.5,4709.4,9.89495568]
[1755111424020,0.002,4710.0,4709.5,3.0]
[1755111424226,0.002,4710.0,4709.9,26.82403214]
[1755111424390,0.002,4710.0,4709.9,30.21043214]
[1755111424733,0.002,4710.0,4709.9,31.51243214]
[1755111425285,0.002,4710.0,4709.9,28.23243214]
[1755111425516,0.002,4710.0,4709.9,31.51243214]
[1755111425724,0.002,4710.0,4709.9,8.46681086]
[1755111425910,0.002,4710.0,4709.9,6.3864]
[1755111430228,0.002,4710.0,4709.9,7.6884]
[1755111431521,0.002,4710.0,4709.9,15.4184]
[1755111432534,0.002,4710.0,4709.9,14.1154]
[1755111433195,0.002,4710.0,4709.9,11.901]
[1755111433507,0.002,4710.0,4709.9,13.28263887]
[1755111434624,0.002,4710.0,4709.9,12.85303887]
[1755111436329,0.002,4710.0,4709.9,32.89307101]
[1755111437232,0.02124084,4710.4,4709.9,29.89307101]
[1755111437412,0.02124084,4710.4,4710.0,1.51396006]
[1755111437612,0.02124084,4710.4,4710.3,0.1064]
[1755111437915,0.02124084,4710.4,4710.3,3.3844]
[1755111438111,0.02124084,4710.4,4710.3,4.70763007]
[1755111438338,0.002,4711.0,4710.3,4.6864]
[1755111438536,0.02,4711.4,4710.9,23.82403214]
[1755111438731,0.02,4711.4,4711.0,5.50578259]
[1755111438926,0.02,4711.4,4711.3,0.1064]
[1755111439250,0.02,4711.4,4711.3,3.3844]
[1755111439649,0.02,4711.4,4711.3,4.70762556]
[1755111439856,0.02,4711.4,4711.3,4.6864]
[1755111440031,0.02,4711.4,4711.3,5.72938874]
[1755111440233,0.02,4711.4,4711.3,8.72938874]
[1755111441263,0.02,4711.4,4711.3,7.42738874]
[1755111441461,0.02,4711.4,4711.3,15.15638874]
[1755111442645,0.02,4711.4,4711.3,15.31226011]
[1755111443163,0.02,4711.4,4711.3,13.97026011]
[1755111443926,0.02,4711.4,4711.3,12.66726011]
[1755111444731,0.022,4711.4,4711.3,9.51138874]
[1755111444931,0.022,4711.4,4711.3,7.42638874]
[1755111445564,0.022,4711.4,4711.3,0.1064]
[1755111445859,1.2762,4711.4,4709.8,0.635931]
[1755111446072,1.2542,4711.3,4708.7,0.4296]
[1755111446228,0.55,4711.2,4708.7,0.4296]
[1755111446424,0.55,4711.2,4708.6,0.10175156]
[1755111446425,1.98827459,4711.2,4708.6,0.10175156]
[1755111446652,1.98827459,4711.2,4708.1,0.02]
[1755111446653,0.01454586,4711.1,4708.1,0.02]
[1755111446928,0.55,4710.9,4708.1,0.02]
[1755111447124,0.55,4710.7,4709.6,3.0]
[1755111447324,0.4428,4710.6,4709.6,3.78328249]
[1755111447657,1.2542,4710.6,4709.6,0.15548249]
[1755111447860,0.4428,4710.5,4709.6,3.0]
[1755111451454,0.4428,4710.5,4709.8,3.0]
[1755111451750,0.4428,4710.5,4709.7,7.729]
[1755111451751,0.4428,4710.5,4710.0,3.0]
[1755111451957,0.4428,4710.9,4710.0,3.0]
[1755111452127,0.58637746,4710.8,4709.8,3.0]
[1755111452456,0.4428,4710.7,4710.0,3.0]
[1755111452659,0.8089,4710.6,4710.0,3.0]
[1755111453159,0.4428,4710.5,4710.0,3.0]
[1755111453570,1.2517,4710.4,4710.0,3.0]
[1755111453859,0.4428,4710.3,4710.0,3.0]
[1755111454056,1.2517,4710.3,4710.0,3.0]
[1755111454230,0.4428,4710.2,4710.0,3.0]
[1755111454758,0.8089,4710.6,4710.0,3.0]
[1755111454958,0.4428,4710.7,4710.0,3.0]
[1755111455663,0.9153,4710.6,4710.0,3.1064]
[1755111455972,0.4428,4710.5,4710.0,0.1064]
[1755111456160,0.55,4710.4,4710.1,3.278]
[1755111456533,0.1064,4710.2,4710.1,3.278]
[1755111456731,1.3581,4710.2,4710.1,3.278]
[1755111458464,0.1064,4710.2,4710.1,3.278]
[1755111458876,0.8089,4710.7,4710.1,6.278]
[1755111459074,0.1064,4710.6,4710.2,3.0]
[1755111459477,0.24221,4710.6,4710.2,3.0]
[1755111459774,1.49391,4710.6,4710.2,3.0]
[1755111460141,0.4428,4710.5,4710.2,3.0]
[1755111460743,0.9928,4711.2,4710.1,3.278]
[1755111460972,0.1064,4710.8,4710.1,3.278]
[1755111462643,0.5492,4710.8,4710.2,3.277]
[1755111463675,0.1064,4710.8,4710.2,3.277]
[1755111465274,0.1064,4710.8,4709.9,0.1064]
[1755111465473,0.55,4710.7,4710.1,3.0]
[1755111465775,0.1064,4710.5,4710.1,3.0]
[1755111467274,0.1064,4710.5,4710.2,1.3094]
[1755111467675,0.1064,4710.7,4710.2,1.3094]
[1755111467876,0.1064,4710.7,4710.2,0.456]
[1755111468076,0.1064,4710.7,4710.1,3.0]
[1755111468280,0.01454586,4710.6,4710.1,3.0]
[1755111468462,0.5492,4710.7,4710.2,3.277]
[1755111469184,0.1064,4710.7,4710.2,3.277]
[1755111469961,0.1064,4710.7,4710.3,3.456]
[1755111470166,0.1064,4710.7,4710.3,4.3094]
[1755111470356,0.1064,4710.7,4710.4,1.3094]
[1755111470556,0.1064,4710.7,4710.5,3.277]
[1755111471755,0.1064,4710.7,4710.6,5.086]
[1755111472154,0.1064,4710.9,4710.6,5.086]
[1755111472358,0.002,4711.0,4710.7,4.3094]
[1755111472579,0.002,4711.0,4710.8,5.48355568]
[1755111472860,0.002,4711.0,4710.8,6.79295568]
[1755111473077,0.002,4711.0,4710.9,0.456]
[1755111473277,0.002,4711.0,4710.9,4.3094]
[1755111473493,0.002,4711.0,4710.9,4.4158]
[1755111473657,0.002,4711.0,4710.9,6.62235568]
[1755111480473,0.002,4711.0,4710.9,9.89835568]
[1755111480697,0.002,4711.0,4710.9,6.62235568]
[1755111481025,0.002,4711.0,4710.9,8.58895568]
[1755111481510,0.002,4711.0,4710.9,16.31895568]
[1755111481878,0.002,4711.0,4710.9,16.78015568]
[1755111482092,0.002,4711.0,4710.9,7.8364]
[1755111482313,1.2219,4711.0,4710.9,11.006]
[1755111482512,1.8783,4711.0,4710.9,11.006]
[1755111482673,1.1012,4711.0,4710.9,14.006]
[1755111482874,0.1084,4711.0,4710.9,14.006]
[1755111483169,0.002,4711.0,4710.9,14.006]
[1755111485494,0.002,4711.0,4710.9,10.73]
[1755111485695,0.002,4711.0,4710.9,14.005]
[1755111487206,0.002,4711.0,4710.9,15.2431]
[1755111487404,0.002,4711.0,4710.9,16.77805]
[1755111488697,0.002,4711.0,4710.9,14.005]
[1755111489379,0.002,4711.0,4710.9,14.7819]
[1755111489587,0.002,4711.0,4710.9,15.2431]
[1755111489781,0.002,4711.0,4710.9,14.4662]
[1755111489988,0.002,4711.0,4710.9,7.73]
[1755111490190,1.8783,4711.0,4710.9,11.005]
[1755111490390,1.1012,4711.0,4710.9,11.005]
[1755111490598,0.6584,4711.0,4710.9,11.005]
[1755111493515,2.06813,4711.0,4710.9,2.644]
[1755111493682,1.97627586,4711.0,4710.9,5.086]
[1755111494002,1.96173,4711.0,4710.9,8.361]
[1755111495008,1.16135759,4711.0,4710.9,8.361]
[1755111495197,0.96173,4711.0,4710.9,8.361]
[1755111495383,0.96173,4711.0,4710.9,5.086]
[1755111495585,0.96173,4711.0,4710.9,8.361]
[1755111496918,1.51173,4711.0,4710.9,8.361]
[1755111503703,1.61813,4711.0,4710.9,8.361]
[1755111504206,0.55,4710.9,4709.9,0.001]
[1755111504535,0.01454586,4710.8,4710.0,8.362]
[1755111504738,3.55,4710.0,4708.7,5.088]
[1755111504892,0.01454586,4709.9,4708.8,3.275]
[1755111505207,0.55,4709.7,4708.8,3.275]
[1755111505525,0.55,4709.5,4708.8,3.275]
[1755111505725,0.01454586,4709.4,4708.8,3.275]
[1755111505927,0.55,4709.3,4708.8,3.275]
[1755111506128,0.79164586,4709.2,4708.8,3.275]
[1755111506422,0.01454586,4709.2,4708.8,3.275]
[1755111506625,0.01454586,4709.2,4708.9,3.275]
[1755111506626,0.55,4709.0,4708.9,3.275]
[1755111506927,0.56454586,4709.6,4708.9,3.275]
[1755111507148,0.56454586,4709.5,4708.9,3.275]
[1755111507301,0.04074586,4709.5,4708.9,3.275]
[1755111508513,0.55,4709.6,4708.9,3.275]
[1755111510425,0.55,4710.1,4708.9,3.275]
[1755111510933,0.01454586,4710.0,4708.9,3.275]